fUST/lending_fUST_20240118
["ID","MTS","AMOUNT","RATE_DAILY","PERIOD"]
[312024000,1705557040846,-170.929524,0.00021157,2]
[312024001,1705557040855,-200.0,0.00021266,7]
[312024002,1705557040864,-521.29319614,0.00021365,2]
[312024003,1705557040872,-2875.09702856,0.00021366,2]
[312024004,1705557040882,-561.81687506,0.00021873,2]
[312024005,1705557040891,-316.61833222,0.00021873,2]
[312024006,1705557040900,-224.48803699,0.00021873,2]
[312024007,1705557040909,-2430.72462731,0.00021873,2]
[312024008,1705557040918,-570.6927824,0.00021873,2]
[312024009,1705557040927,-155.5005348,0.00021874,2]
[312024010,1705557040936,-10715.20208051,0.00021874,2]
[312024011,1705557040945,-166.666666,0.00021918,2]
[312024012,1705557040954,-293.23530462,0.00022,4]
[312024013,1705557040963,-3959.1053351,0.00022,2]
[312024014,1705557040973,-166.666666,0.00022431,2]
[312024015,1705557040983,-166.666666,0.00022944,2]
[312024016,1705557040993,-280.0,0.00023393,7]
[312024017,1705557041002,-166.666666,0.00023456,2]
[312024021,1705557041101,-526.06302176,0.0002382,2]
[312024023,1705557041110,-2677.21,0.0002387,3]
[312024025,1705557041119,-1714.7,0.0002388,3]
[312024027,1705557041128,-4184.18541405,0.000239,2]
[312024029,1705557041137,-166.666666,0.00023969,2]
[312024031,1705557041147,-1830.62942806,0.00024,2]
[312024032,1705557041156,-166.666666,0.00024482,2]
[312024034,1705557041165,-497.89805688,0.0002495,5]
[312024036,1705557041174,-701.11141564,0.00025,2]
[312024039,1705557041183,-1045.45812768,0.00025,2]
[312024040,1705557041192,-4718.82684458,0.00025,2]
[312024042,1705557041201,-154.9690062,0.00025,2]
[312024044,1705557041210,-391.0,0.00025732,7]
[312024046,1705557041219,-526.29712741,0.00026,2]
[312024048,1705557041229,-620.0,0.000264,2]
[312024051,1705557041238,-233.698571,0.00026866,2]
[312024053,1705557041247,-841.74822758,0.0002705,5]
[312024055,1705557041256,-175.538798,0.00027397,2]
[312024057,1705557041266,-160.478913,0.00027397,2]
[312024059,1705557041275,-166.285933,0.00027397,2]
[312024061,1705557041285,-167.259919,0.00027397,2]
[312024062,1705557041294,-500.0,0.00027711,2]
[312024065,1705557041304,-500.0,0.00027711,2]
[312024066,1705557041313,-500.0,0.00027711,2]
[312024068,1705557041322,-500.0,0.00027711,2]
[312024071,1705557041331,-500.0,0.00027711,2]
[312024073,1705557041340,-500.0,0.00027711,2]
[312024075,1705557041350,-500.0,0.00027711,2]
[312024076,1705557041359,-443.55106363,0.00027711,2]
[312024078,1705557041368,-500.0,0.00027711,2]
[312024080,1705557041377,-500.0,0.00027711,2]
[312024083,1705557041387,-500.0,0.00027711,2]
[312024084,1705557041398,-529.73967421,0.00027711,2]
[312024086,1705557041407,-500.0,0.00027711,2]
[312024088,1705557041416,-500.0,0.00027711,2]
[312024090,1705557041425,-500.0,0.00027711,2]
[312024092,1705557041434,-500.0,0.00027711,2]
[312024094,1705557041445,-500.0,0.00027711,2]
[312024097,1705557041454,-500.0,0.00027711,2]
[312024098,1705557041463,-500.0,0.00027711,2]
[312024100,1705557041476,-500.0,0.00027711,2]
[312024102,1705557041486,-500.0,0.00027711,2]
[312024105,1705557041495,-641.09836514,0.00027711,2]
[312024107,1705557041505,-500.0,0.00027711,2]
[312024108,1705557041514,-500.0,0.00027711,2]
[312024110,1705557041523,-500.0,0.00027711,2]
[312024113,1705557041533,-500.0,0.00027711,2]
[312024115,1705557041543,-460.5567179,0.00027711,2]
[312024117,1705557041552,-500.0,0.00027711,2]
[312024119,1705557041562,-500.0,0.00027711,2]
[312024120,1705557041571,-563.21379333,0.00027711,2]
[312024123,1705557041580,-500.0,0.00027711,2]
[312024125,1705557041590,-500.0,0.00027711,2]
[312024127,1705557041601,-500.0,0.00027711,2]
[312024129,1705557041611,-500.0,0.00027711,2]
[312024131,1705557041620,-500.0,0.00027711,2]
[312024133,1705557041629,-500.0,0.00027711,2]
[312024135,1705557041641,-500.0,0.00027711,2]
[312024137,1705557041651,-500.0,0.00027711,2]
[312024139,1705557041659,-500.0,0.00027711,2]
[312024141,1705557041668,-500.0,0.00027711,2]
[312024143,1705557041678,-500.0,0.00027711,2]
[312024145,1705557041686,-500.0,0.00027711,2]
[312024147,1705557041695,-500.0,0.00027711,2]
[312024149,1705557041704,-500.0,0.00027711,2]
[312024151,1705557041713,-500.0,0.00027711,2]
[312024152,1705557041722,-500.0,0.00027711,2]
[312024154,1705557041731,-500.0,0.00027711,2]
[312024156,1705557041740,-500.0,0.00027711,2]
[312024158,1705557041749,-500.0,0.00027711,2]
[312024160,1705557041758,-500.0,0.00027711,2]
[312024163,1705557041767,-500.0,0.00027711,2]
[312024165,1705557041778,-500.0,0.00027711,2]
[312024167,1705557041786,-500.0,0.00027711,2]
[312024169,1705557041795,-500.0,0.00027711,2]
[312024170,1705557041804,-500.0,0.00027711,2]
[312024172,1705557041813,-500.0,0.00027711,2]
[312024174,1705557041822,-500.0,0.00027711,2]
[312024177,1705557041831,-500.0,0.00027711,2]
[312024178,1705557041840,-500.0,0.00027711,2]
[312024180,1705557041849,-500.0,0.00027711,2]
[312024182,1705557041858,-288.57919774,0.00027711,2]
[312024184,1705557041867,-500.0,0.00027711,2]
[312024186,1705557041876,-500.0,0.00027711,2]
[312024188,1705557041884,-500.0,0.00027711,2]
[312024190,1705557041893,-500.0,0.00027711,2]
[312024192,1705557041902,-500.0,0.00027711,2]
[312024194,1705557041911,-500.0,0.00027711,2]
[312024196,1705557041920,-221.30939356,0.00027711,2]
[312024198,1705557041929,-500.0,0.00027711,2]
[312024200,1705557041938,-300.0,0.00027711,2]
[312024202,1705557041947,-576.18626784,0.00027711,2]
[312024204,1705557041956,-576.18626784,0.00027711,2]
[312024206,1705557041964,-576.18626784,0.00027711,2]
[312024208,1705557041973,-576.18626784,0.00027711,2]
[312024210,1705557041983,-576.18626784,0.00027711,2]
[312024212,1705557041993,-576.18626784,0.00027711,2]
[312024215,1705557042002,-576.18626784,0.00027711,2]
[312024216,1705557042011,-576.18626784,0.00027711,2]
[312024218,1705557042020,-576.18626784,0.00027711,2]
[312024220,1705557042030,-576.18626784,0.00027711,2]
[312024222,1705557042040,-576.18626784,0.00027711,2]
[312024224,1705557042049,-576.18626784,0.00027711,2]
[312024226,1705557042058,-576.18626784,0.00027711,2]
[312024229,1705557042067,-576.18626784,0.00027711,2]
[312024230,1705557042076,-576.18626784,0.00027711,2]
[312024233,1705557042086,-576.18626784,0.00027711,2]
[312024235,1705557042095,-576.18626784,0.00027711,2]
[312024236,1705557042104,-576.18626784,0.00027711,2]
[312024237,1705557042113,-576.18626784,0.00027711,2]
[312024238,1705557042123,-576.18626784,0.00027711,2]
[312024239,1705557042131,-500.0,0.00027711,2]
[312024240,1705557042141,-576.18626776,0.00027711,2]
[312024241,1705557042150,-176.26510387,0.00027712,3]
[312024242,1705557042159,-264283.03525885,0.00027712,2]
[312024243,1705557042167,-92970.17385904,0.00027712,2]
[312024244,1705557042176,-620.0,0.0002772,2]
[312024245,1705557042185,-184.41586934,0.00027887,2]
[312024246,1705557042194,-687.23089543,0.00027888,2]
[312024247,1705557042203,-2107.37177409,0.00027888,2]
[312024248,1705557042214,-1694.70771461,0.00027888,2]
[312024249,1705557042223,-587.55478974,0.00027888,2]
[312024250,1705557042232,-260.79058258,0.00027888,2]
[312024251,1705557042242,-613.17217597,0.00027889,2]
[312024252,1705557042251,-1162.45519255,0.00027889,2]
[312024253,1705557042261,-6145.85425109,0.0002789,3]
[312024254,1705557042270,-9490.24219564,0.0002789,3]
[312024255,1705557042279,-4511.41411048,0.0002789,3]
[312024256,1705557042289,-970.65961253,0.00027916,3]
[312024257,1705557042298,-18098.2745341,0.00027916,3]
[312024259,1705557042307,-345.5207472,0.00028,2]
[312024260,1705557042316,-290.00241025,0.00028,2]
[312024262,1705557042325,-200.0,0.00028305,15]
[312024264,1705557042334,-348.0,0.00028305,15]
[312024266,1705557042343,-166.285933,0.00028584,2]
[312024268,1705557042352,-167.259919,0.00028584,2]
[312024270,1705557042361,-160.478913,0.00028692,2]
[312024272,1705557042370,-407.22045257,0.00028999,4]
[312024274,1705557042379,-500.0,0.00028999,4]
[312024276,1705557042387,-500.0,0.00028999,4]
[312024278,1705557042399,-500.0,0.00028999,4]
[312024280,1705557042408,-500.0,0.00028999,4]
[312024282,1705557042417,-500.0,0.00028999,4]
[312024284,1705557042426,-500.0,0.00028999,4]
[312024286,1705557042435,-158.62099645,0.00028999,4]
[312024288,1705557042444,-500.0,0.00028999,4]
[312024290,1705557042453,-500.0,0.00028999,4]
[312024292,1705557042462,-500.0,0.00028999,4]
[312024294,1705557042471,-500.0,0.00028999,4]
[312024296,1705557042482,-500.0,0.00028999,4]
[312024298,1705557042491,-644.26914984,0.00028999,4]
[312024300,1705557042500,-500.0,0.00028999,4]
[312024302,1705557042509,-500.0,0.00028999,4]
[312024304,1705557042518,-500.0,0.00028999,4]
[312024306,1705557042528,-500.0,0.00028999,4]
[312024308,1705557042537,-500.0,0.00028999,4]
[312024310,1705557042546,-500.0,0.00028999,4]
[312024312,1705557042555,-500.0,0.00028999,4]
[312024314,1705557042564,-500.0,0.00028999,4]
[312024316,1705557042573,-350.00358231,0.00028999,4]
[312024318,1705557042582,-500.0,0.00028999,4]
[312024320,1705557042591,-500.0,0.00028999,4]
[312024322,1705557042600,-500.0,0.00028999,4]
[312024324,1705557042610,-500.0,0.00028999,4]
[312024326,1705557042619,-500.0,0.00028999,4]
[312024328,1705557042628,-500.0,0.00028999,4]
[312024330,1705557042637,-500.0,0.00028999,4]
[312024332,1705557042647,-500.0,0.00028999,4]
[312024334,1705557042656,-247.63763932,0.00028999,4]
[312024336,1705557042665,-154.93802479,0.00029,2]
[312024338,1705557042674,-2455.73923901,0.00029,2]
[312024340,1705557042683,-54789.85377943,0.00029,2]
[312024342,1705557042692,-877.862532,0.00029,2]
[312024344,1705557042701,-877.862532,0.00029,2]
[312024346,1705557042710,-151.0,0.00029,2]
[312024348,1705557042720,-1806.448019,0.00029,2]
[312024350,1705557042728,-1806.448019,0.00029,2]
[312024352,1705557042738,-620.0,0.00029106,2]
[312024354,1705557042747,-166.285933,0.00029772,2]
[312024356,1705557042756,-167.259919,0.00029772,2]
[312024358,1705557042765,-160.478913,0.00029988,2]
[312024360,1705557042774,-166.71322997,0.0003,2]
[312024369,1705557042851,-9982.19472582,0.0003,3]
[312024371,1705557042861,-299.40501043,0.0003,2]
[312024373,1705557042870,-6192.60917587,0.0003,2]
[312024375,1705557042879,-1908.4624739,0.0003,2]
[312024377,1705557042887,-682.23213824,0.0003,3]
[312024379,1705557042896,-640.81580837,0.0003,4]
[312024381,1705557042905,-18610.0,0.0003,30]
[312024383,1705557042914,-400.0,0.0003,2]
[312024385,1705557042923,-189.0,0.0003,2]
[312024387,1705557042932,-194.98151366,0.00030017,2]
[312024389,1705557042940,-500.0,0.00030136,2]
[312024391,1705557042950,-163.0,0.00030238,2]
[312024393,1705557042959,-202.416,0.00030238,2]
[312024395,1705557042968,-500.0,0.00030273,2]
[312024397,1705557042978,-167.13604108,0.0003041,2]
[312024399,1705557042986,-985.15924715,0.000305,2]
[312024401,1705557042995,-620.0,0.00030561,2]
[312024403,1705557043005,-246.0,0.00030869,30]
[312024405,1705557043014,-246.0,0.00030879,30]
[312024407,1705557043023,-246.0,0.00030889,30]
[312024409,1705557043032,-1806.448019,0.00030899,2]
[312024411,1705557043040,-1806.448019,0.00030899,2]
[312024413,1705557043049,-271.63,0.00030929,30]
[312024415,1705557043058,-150.5,0.00030939,30]
[312024417,1705557043067,-150.5,0.00030949,30]
[312024419,1705557043076,-166.285933,0.00030959,2]
[312024421,1705557043085,-167.259919,0.00030959,2]
[312024423,1705557043094,-152.118286,0.00030959,2]
[312024425,1705557043102,-150.0,0.00031,4]
[312024427,1705557043111,-153.083675,0.00031,2]
[312024429,1705557043120,-877.862532,0.00031,2]
[312024431,1705557043129,-877.862532,0.00031,2]
[312024433,1705557043139,-153.4547505,0.00031094,7]
[312024435,1705557043148,-200.0,0.00031136,15]
[312024437,1705557043157,-200.0,0.00031136,15]
[312024439,1705557043166,-368.0,0.00031136,15]
[312024441,1705557043176,-50000.0,0.0003117,7]
[312024443,1705557043185,-877.862532,0.0003117,2]
[312024445,1705557043194,-877.862532,0.0003117,2]
[312024447,1705557043204,-1806.448019,0.0003117,2]
[312024449,1705557043213,-1806.448019,0.0003117,2]
[312024451,1705557043222,-50000.0,0.00031172,7]
[312024453,1705557043231,-877.862532,0.00031172,2]
[312024455,1705557043239,-877.862532,0.00031172,2]
[312024457,1705557043249,-1806.448019,0.00031172,2]
[312024459,1705557043258,-1806.448019,0.00031172,2]
[312024461,1705557043266,-160.478913,0.00031283,2]
[312024463,1705557043276,-687.89788967,0.00031363,4]
[312024465,1705557043285,-5388.77112641,0.00031364,4]
[312024467,1705557043294,-201.08171049,0.00031364,4]
[312024469,1705557043303,-153.4547505,0.00031498,7]
[312024471,1705557043312,-50000.0,0.00031555,7]
[312024473,1705557043321,-877.862532,0.00031555,2]
[312024475,1705557043330,-877.862532,0.00031555,2]
[312024477,1705557043339,-1806.448019,0.00031555,2]
[312024479,1705557043348,-1806.448019,0.00031555,2]
[312024481,1705557043357,-286.73752064,0.00031896,4]
[312024483,1705557043366,-153.4547505,0.00031913,7]
[312024485,1705557043375,-153.4547505,0.00031919,7]
[312024487,1705557043384,-56040.90218845,0.00032,15]
[312024496,1705557043460,-3572.00707235,0.00032,15]
[312024531,1705557043776,-0.06314048,0.00027702,3]
[312024533,1705557043788,-2230.94685952,0.00027702,3]
[312024535,1705557043797,-78429.09706203,0.00032,15]
[312025361,1705558231892,-162.17318871,0.0001989,2]
[312025362,1705558231901,-1581.11940922,0.00019974,2]
[312025363,1705558231910,-1113.73927963,0.00019975,2]
[312025364,1705558231920,-2085.12830253,0.0002,2]
[312025365,1705558231928,-300.0,0.0002,2]
[312025366,1705558231937,-678.05962952,0.0002,2]
[312025367,1705558231946,-1196.96135251,0.0002,2]
[312025369,1705558231955,-1815.75822214,0.00021604,2]
[312025371,1705558231964,-327.24959811,0.00021605,2]
[312025373,1705558231972,-160.83729,0.00021606,2]
[312025375,1705558231981,-24900.0,0.00021759,2]
[312025377,1705558231990,-166.666666,0.00021918,2]
[312025379,1705558231999,-200.0,0.00021999,7]
[312025381,1705558232008,-3959.1053351,0.00022,2]
[312025382,1705558232017,-425.62034809,0.00022,2]
[312025384,1705558232026,-166.666666,0.00022431,2]
[312025386,1705558232034,-166.666666,0.00022944,2]
[312025388,1705558232043,-166.666666,0.00023456,2]
[312025390,1705558232052,-166.666666,0.00023969,2]
[312025392,1705558232061,-237.38624062,0.00023981,2]
[312025394,1705558232071,-546.88448558,0.00023981,2]
[312025396,1705558232080,-196.5046549,0.00023981,2]
[312025398,1705558232089,-1559.39644809,0.00023981,2]
[312025400,1705558232098,-903.07262342,0.00023981,2]
[312025402,1705558232106,-325.33582423,0.00023982,7]
[312025403,1705558232115,-243.96064711,0.00023982,2]
[312025407,1705558232211,-1830.62942806,0.00024,2]
[312025408,1705558232220,-280.0,0.00024199,7]
[312025409,1705558232230,-166.666666,0.00024482,2]
[312025410,1705558232239,-497.89805688,0.0002495,5]
[312025411,1705558232249,-1045.45812768,0.00025,2]
[312025412,1705558232258,-4718.82684458,0.00025,2]
[312025413,1705558232267,-526.29712741,0.00026,2]
[312025414,1705558232276,-391.0,0.00026619,15]
[312025415,1705558232285,-211.604964,0.00027397,2]
[312025460,1705558237933,-85.813887,0.00027397,2]
[312025462,1705558237942,-206.13480757,0.00027945,3]
[312025464,1705558237954,-1498.14085442,0.00027945,3]
[312025466,1705558237965,-5933.27508757,0.00027945,3]
[312025873,1705558242955,-667.45925044,0.00027945,3]
[312025876,1705558242964,-214.49985454,0.00027953,2]
[312025879,1705558242974,-12354.35271383,0.00027954,2]
[312025881,1705558242982,-10009.15966746,0.00027955,3]
[312025883,1705558242992,-1935.60422354,0.00027955,3]
[312025886,1705558243001,-9588.93154566,0.00027955,3]
[312025887,1705558243010,-6258.32888356,0.00027955,3]
[312025889,1705558243019,-345.5207472,0.00028,2]
[312025891,1705558243028,-297.418851,0.00028415,2]
[312025893,1705558243036,-155.01548296,0.00028998,2]
[312025895,1705558243045,-154.93802479,0.00028998,4]
[312025897,1705558243054,-246.69766217,0.00028998,2]
[312025899,1705558243063,-154.93802479,0.00029,2]
[312025901,1705558243072,-2455.73923901,0.00029,2]
[312025903,1705558243081,-200.0,0.00029281,15]
[312025905,1705558243090,-348.0,0.00029281,15]
[312025907,1705558243099,-297.418851,0.00029432,2]
[312025909,1705558243108,-1394.72847135,0.000299,2]
[312025911,1705558243117,-508.17543943,0.0003,3]
[312025913,1705558243126,-486.36237481,0.0003,4]
[312025915,1705558243135,-155.2340082,0.0003,4]
[312025917,1705558243144,-154.93802479,0.0003,4]
[312025919,1705558243153,-687.89788967,0.0003,4]
[312025921,1705558243161,-640.81580837,0.0003,4]
[312025923,1705558243171,-316.0,0.0003,2]
[312025925,1705558243179,-181.99773631,0.00030017,2]
[312025927,1705558243188,-338.42184542,0.00030389,4]
[312025929,1705558243198,-8342.55388476,0.000304,5]
[312026343,1705559090499,499.0,0.00018001,2]
[312026433,1705559432100,-160.90351567,0.00019995,2]
[312026434,1705559432110,-361.23328326,0.00019995,2]
[312026435,1705559432119,-269.35968228,0.00019996,2]
[312026476,1705559438260,-844.37959735,0.00019996,2]
[312026478,1705559438269,-151.76661882,0.0002,2]
[312026479,1705559438278,-327.24959811,0.00021,2]
[312026480,1705559438287,-1815.75822214,0.00021999,2]
[312026481,1705559438296,-425.62034809,0.00022,2]
[312026482,1705559438305,-764.22551321,0.00022076,5]
[312026483,1705559438315,-154.9690062,0.00022076,2]
[312026484,1705559438324,-798.17679516,0.0002399,2]
[312026485,1705559438333,-154.93802479,0.00024504,4]
[312026486,1705559438343,-24900.0,0.00024531,2]
[312026487,1705559438352,-166.666666,0.00024614,2]
[312026488,1705559438361,-213.507193,0.00024717,2]
[312026489,1705559438370,-497.89805688,0.0002495,5]
[312026490,1705559438379,-1045.45812768,0.00025,2]
[312026491,1705559438391,-166.666666,0.00025285,2]
[312026492,1705559438401,-166.666666,0.00025956,2]
[312026493,1705559438410,-1311.92454345,0.00026553,2]
[312026494,1705559438419,-166.666666,0.00026627,2]
[312026495,1705559438428,-200.0,0.00026983,15]
[312026496,1705559438437,-166.666666,0.00027298,2]
[312026497,1705559438446,-237.93508,0.00027397,2]
[312026498,1705559438455,-929.8189809,0.000278,2]
[312026499,1705559438464,-3225.61717312,0.00027955,3]
[312026500,1705559438473,-2195.21907587,0.00027955,3]
[312026501,1705559438482,-5000.0,0.00027955,5]
[312026502,1705559438491,-3555.29302374,0.00027955,3]
[312026503,1705559438500,-166.666666,0.00027969,2]
[312026504,1705559438509,-345.5207472,0.00028,2]
[312026505,1705559438519,-176.1427024,0.00028211,2]
[312026506,1705559438528,-237.93508,0.00028415,2]
[312026507,1705559438537,-9112.94247828,0.0002888,4]
[312026508,1705559438546,-187.92117186,0.00029,2]
[312026509,1705559438555,-2455.73923901,0.00029,2]
[312026510,1705559438564,-153.2749664,0.00029315,2]
[312026511,1705559438573,-154.5828424,0.00029315,2]
[312026512,1705559438582,-154.5843037,0.00029315,2]
[312026513,1705559438591,-155.0114457,0.00029315,2]
[312026514,1705559438600,-269.8425655,0.00029315,2]
[312026515,1705559438609,-170.5046315,0.00029315,2]
[312026516,1705559438618,-153.0,0.00029315,2]
[312026517,1705559438627,-198.9993255,0.00029315,2]
[312026518,1705559438638,-153.0,0.00029315,2]
[312026519,1705559438648,-198.9993255,0.00029315,2]
[312026520,1705559438657,-306.0,0.00029315,2]
[312026521,1705559438666,-153.0,0.00029315,2]
[312026522,1705559438675,-198.9993255,0.00029315,2]
[312026523,1705559438684,-198.9993255,0.00029315,2]
[312026524,1705559438692,-153.0,0.00029315,2]
[312026525,1705559438701,-153.0,0.00029315,2]
[312026526,1705559438710,-198.9993255,0.00029315,2]
[312026527,1705559438719,-153.0,0.00029315,2]
[312026528,1705559438729,-198.9993255,0.00029315,2]
[312026529,1705559438738,-620.02939328,0.0002937,2]
[312026530,1705559438748,-237.93508,0.00029432,2]
[312026531,1705559438757,-280.0,0.00029682,15]
[312026532,1705559438766,-16056.65,0.00029843,3]
[312026533,1705559438775,-19267.97,0.00029853,3]
[312026534,1705559438783,-5000.0,0.00029863,2]
[312026535,1705559438792,-507.44515137,0.0003,3]
[312026536,1705559438802,-3000.0,0.0003,2]
[312026537,1705559438811,-640.81580837,0.0003,4]
[312026538,1705559438821,-211.0,0.0003,2]
[312026539,1705559438830,-198.9993255,0.00030137,2]
[312026540,1705559438839,-198.9993255,0.00030137,2]
[312026541,1705559438848,-198.9993255,0.00030137,2]
[312026542,1705559438858,-198.9993255,0.00030137,2]
[312026543,1705559438867,-198.9993255,0.00030137,2]
[312026544,1705559438876,-198.9993255,0.00030137,2]
[312026545,1705559438887,-198.9993255,0.00030137,2]
[312026546,1705559438896,-198.9993255,0.00030137,2]
[312026547,1705559438905,-198.9993255,0.00030137,2]
[312026548,1705559438914,-470.34681749,0.00030397,2]
[312026549,1705559438923,-676.79156372,0.00030398,4]
[312026550,1705559438933,-1194.94381768,0.00030399,4]
[312026551,1705559438942,-1700.64348773,0.00030399,4]
[312026552,1705559438952,-410.41281499,0.000304,2]
[312026553,1705559438961,-4459.3054765,0.000304,4]
[312026554,1705559438970,-283.01176432,0.000304,3]
[312026555,1705559438980,-2451.53804453,0.000304,2]
[312026556,1705559438989,-154.93802479,0.000304,4]
[312026557,1705559438998,-154.93802479,0.000304,2]
[312026558,1705559439007,-195.1690538,0.000304,4]
[312026559,1705559439017,-351.14579978,0.000304,2]
[312026560,1705559439026,-237.93508,0.0003045,2]
[312026561,1705559439034,-246.39706185,0.000305,2]
[312026562,1705559439043,-620.00146966,0.00030838,2]
[312026563,1705559439053,-5000.0,0.00030988,7]
[312026564,1705559439062,-1500.0,0.00031,2]
[312026565,1705559439071,-171.42439715,0.00031144,7]
[312026566,1705559439081,-154.05211488,0.00031189,7]
[312026567,1705559439090,-154.05211488,0.00031273,7]
[312026568,1705559439099,-5000.54161428,0.0003128,7]
[312026569,1705559439112,-1290.37872496,0.0003128,7]
[312026570,1705559439150,-539.45456518,0.0003128,7]
[312026606,1705559443753,-425.62034809,0.00022075,2]
[312026608,1705559443762,-1830.62942806,0.00024,2]
[312026610,1705559443772,-1605.10653567,0.0003128,7]
[312026612,1705559443781,-233.60403779,0.00031357,4]
[312026614,1705559443791,-154.05211488,0.00031446,7]
[312026616,1705559443800,-237.93508,0.00031468,2]
[312026618,1705559443810,-155.0,0.000315,2]
[312026620,1705559443819,-5000.0,0.00031723,2]
[312026622,1705559443828,-154.05211488,0.00031917,7]
[312026624,1705559443837,-172.0,0.0003197,30]
[312026626,1705559443846,-150.5,0.0003197,30]
[312026628,1705559443855,-348.36157568,0.00031978,2]
[312026630,1705559443865,-172.0,0.0003198,30]
[312026632,1705559443874,-150.5,0.0003198,30]
[312026634,1705559443883,-2711.34625531,0.00031987,120]
[312026636,1705559443893,-1902.81309675,0.00031987,3]
[312026638,1705559443902,-527.57753708,0.00031988,4]
[312026640,1705559443912,-466.94620861,0.00031988,4]
[312026642,1705559443921,-3126.02728391,0.00031988,4]
[312026644,1705559443930,-2031.79600429,0.00031988,4]
[312026646,1705559443940,-2043.41617332,0.00031989,4]
[312026648,1705559443949,-172.0,0.0003199,30]
[312026650,1705559443958,-150.5,0.0003199,30]
[312026652,1705559443967,-309.9690031,0.00031997,4]
[312026654,1705559443976,-413.74268166,0.00031998,4]
[312026656,1705559443985,-176.26510387,0.00031999,3]
[312026658,1705559443995,-479.80939989,0.00031999,4]
[312026660,1705559444004,-500.0,0.00031999,4]
[312026662,1705559444015,-174.5230511,0.00031999,4]
[312026664,1705559444024,-500.0,0.00031999,4]
[312026666,1705559444034,-500.0,0.00031999,4]
[312026668,1705559444043,-500.0,0.00031999,4]
[312026670,1705559444052,-500.0,0.00031999,4]
[312026672,1705559444061,-493.96574734,0.00031999,4]
[312026674,1705559444070,-500.0,0.00031999,4]
[312026676,1705559444079,-486.56148991,0.00031999,4]
[312026678,1705559444088,-500.0,0.00031999,4]
[312026680,1705559444097,-410.00214939,0.00031999,4]
[312026682,1705559444106,-500.0,0.00031999,4]
[312026684,1705559444115,-500.0,0.00031999,4]
[312026686,1705559444124,-648.58258359,0.00031999,4]
[312026688,1705559444134,-500.0,0.00031999,4]
[312026690,1705559444148,-500.0,0.00031999,4]
[312026692,1705559444157,-500.0,0.00031999,4]
[312026694,1705559444165,-500.0,0.00031999,4]
[312026696,1705559444174,-500.0,0.00031999,4]
[312026698,1705559444186,-500.0,0.00031999,4]
[312026700,1705559444195,-500.0,0.00031999,2]
[312026702,1705559444204,-500.0,0.00031999,2]
[312026704,1705559444213,-500.0,0.00031999,2]
[312026706,1705559444224,-500.0,0.00031999,2]
[312026708,1705559444234,-500.0,0.00031999,2]
[312026710,1705559444243,-500.0,0.00031999,2]
[312026712,1705559444252,-500.0,0.00031999,2]
[312026714,1705559444262,-500.0,0.00031999,2]
[312026716,1705559444271,-500.0,0.00031999,2]
[312026718,1705559444280,-417.84380453,0.00031999,2]
[312026720,1705559444290,-500.0,0.00031999,2]
[312026722,1705559444298,-500.0,0.00031999,2]
[312026724,1705559444308,-500.0,0.00031999,2]
[312026726,1705559444317,-500.0,0.00031999,2]
[312026728,1705559444327,-500.0,0.00031999,2]
[312026730,1705559444336,-500.0,0.00031999,2]
[312026732,1705559444346,-500.0,0.00031999,2]
[312026734,1705559444355,-500.0,0.00031999,2]
[312026736,1705559444364,-500.0,0.00031999,2]
[312026738,1705559444373,-168.07736453,0.00031999,2]
[312026740,1705559444382,-500.0,0.00031999,2]
[312026742,1705559444393,-500.0,0.00031999,2]
[312026744,1705559444402,-500.0,0.00031999,2]
[312026746,1705559444411,-500.0,0.00031999,2]